[Event "Late-Titled-Tuesday-Blitz-June-18-2024"]
[Site "Chess.com"]
[Date "2024.06.18"]
[Round "1"]
[White "EddieMarsalla"]
[Black "FMOlexandrProhorov"]
[Result "1-0"]
[WhiteElo "2678"]
[BlackElo "2371"]
[TimeControl "180+1"]
[EndTime "14:09:19 PDT"]
[Termination "EddieMarsalla won by resignation"]

1. d4 {[%clk 0:03:00.3]} 1... g6 {[%clk 0:02:59.7]} 2. c3 {[%clk 0:02:59.2]}
2... Bg7 {[%clk 0:03:00.6]} 3. Bg5 {[%clk 0:02:59.3]} 3... c5 {[%clk 0:03:00.3]}
4. e3 {[%clk 0:02:57.6]} 4... Qb6 {[%clk 0:02:59.7]} 5. Qc2 {[%clk 0:02:56.2]}
5... d6 {[%clk 0:02:57]} 6. Bd3 {[%clk 0:02:55]} 6... Nc6 {[%clk 0:02:56.7]} 7.
Nf3 {[%clk 0:02:54.2]} 7... Nf6 {[%clk 0:02:55.4]} 8. Nbd2 {[%clk 0:02:53.8]}
8... O-O {[%clk 0:02:54.5]} 9. O-O {[%clk 0:02:52.6]} 9... Bg4 {[%clk
0:02:44.6]} 10. h3 {[%clk 0:02:50.3]} 10... Bxf3 {[%clk 0:02:42.5]} 11. Nxf3
{[%clk 0:02:51.2]} 11... Rac8 {[%clk 0:02:38.9]} 12. Qe2 {[%clk 0:02:46]} 12...
Qc7 {[%clk 0:02:27.3]} 13. Rfe1 {[%clk 0:02:42]} 13... e5 {[%clk 0:02:26.9]} 14.
Bxf6 {[%clk 0:02:41.8]} 14... Bxf6 {[%clk 0:02:26.6]} 15. d5 {[%clk 0:02:42.1]}
15... Ne7 {[%clk 0:02:25]} 16. e4 {[%clk 0:02:39.3]} 16... Bg7 {[%clk
0:02:25.1]} 17. c4 {[%clk 0:02:39.2]} 17... h6 {[%clk 0:02:25.2]} 18. g4 {[%clk
0:02:32.8]} 18... Qd7 {[%clk 0:02:18.7]} 19. Kh2 {[%clk 0:02:30.9]} 19... f5
{[%clk 0:02:12.4]} 20. gxf5 {[%clk 0:02:31.8]} 20... gxf5 {[%clk 0:02:12.7]} 21.
Rg1 {[%clk 0:02:32.5]} 21... Kh8 {[%clk 0:02:12.4]} 22. Rg2 {[%clk 0:02:26.7]}
22... fxe4 {[%clk 0:01:55]} 23. Bxe4 {[%clk 0:02:26.2]} 23... Rf4 {[%clk
0:01:51.6]} 24. Rag1 {[%clk 0:02:25.2]} 24... Bf6 {[%clk 0:01:48.1]} 25. Ne1
{[%clk 0:02:14.3]} 25... Rf8 {[%clk 0:01:43.1]} 26. Nd3 {[%clk 0:02:13.9]} 26...
Rh4 {[%clk 0:01:39.1]} 27. Rg3 {[%clk 0:01:50]} 27... Bg5 {[%clk 0:01:31.2]} 28.
Bg2 {[%clk 0:01:43]} 28... Nf5 {[%clk 0:01:24.7]} 29. Rf3 {[%clk 0:01:42.4]}
29... Bf6 {[%clk 0:01:10.8]} 30. Ne1 {[%clk 0:01:19.5]} 30... Nd4 {[%clk
0:01:05.5]} 31. Qe3 {[%clk 0:01:17.1]} 31... Nxf3+ {[%clk 0:00:52.3]} 32. Nxf3
{[%clk 0:01:18]} 32... Rh5 {[%clk 0:00:47.8]} 33. Bf1 {[%clk 0:01:05.9]} 33...
Qf5 {[%clk 0:00:44]} 34. Rg3 {[%clk 0:00:50.3]} 34... Qf4 {[%clk 0:00:39.4]} 35.
Qxf4 {[%clk 0:00:47.5]} 35... exf4 {[%clk 0:00:39.3]} 36. Rg4 {[%clk 0:00:48.4]}
36... Bxb2 {[%clk 0:00:36.5]} 37. Nh4 {[%clk 0:00:49]} 37... Re8 {[%clk
0:00:31.4]} 38. Ng6+ {[%clk 0:00:46.4]} 38... Kh7 {[%clk 0:00:28.9]} 39. Bd3
{[%clk 0:00:47]} 39... Rg5 {[%clk 0:00:22]} 40. Rxf4 {[%clk 0:00:46.9]} 40...
Rxg6 {[%clk 0:00:19.3]} 41. Rf7+ {[%clk 0:00:46.8]} 41... Kg8 {[%clk 0:00:18.7]}
42. Bxg6 {[%clk 0:00:45.6]} 42... Re2 {[%clk 0:00:16.4]} 43. Rxb7 {[%clk
0:00:45.3]} 43... Be5+ {[%clk 0:00:16.5]} 44. Kg2 {[%clk 0:00:45.1]} 44... Bd4
{[%clk 0:00:13]} 45. Rxa7 {[%clk 0:00:41.8]} 45... Rxf2+ {[%clk 0:00:12.7]} 46.
Kg3 {[%clk 0:00:42.2]} 46... Rf6 {[%clk 0:00:10.7]} 47. Bh7+ {[%clk 0:00:40.1]}
47... Kf8 {[%clk 0:00:10.5]} 48. h4 {[%clk 0:00:40.3]} 48... Be5+ {[%clk
0:00:09.8]} 49. Kh3 {[%clk 0:00:38.4]} 49... Rf4 {[%clk 0:00:09.2]} 50. Ra4
{[%clk 0:00:30]} 50... Bf6 {[%clk 0:00:08.9]} 51. h5 {[%clk 0:00:28.2]} 51...
Rh4+ {[%clk 0:00:09.1]} 52. Kg3 {[%clk 0:00:28.3]} 52... Rxh5 {[%clk 0:00:09.5]}
53. Ra8+ {[%clk 0:00:28.9]} 53... Ke7 {[%clk 0:00:08.3]} 54. Ra7+ {[%clk
0:00:29.2]} 54... Kf8 {[%clk 0:00:08.6]} 55. Kg4 {[%clk 0:00:25]} 55... Rg5+
{[%clk 0:00:08.5]} 56. Kf3 {[%clk 0:00:25.6]} 56... Be5 {[%clk 0:00:06.4]} 57.
a4 {[%clk 0:00:24.6]} 57... Rg3+ {[%clk 0:00:06.2]} 58. Ke4 {[%clk 0:00:25.2]}
58... h5 {[%clk 0:00:06.5]} 59. a5 {[%clk 0:00:24.2]} 59... h4 {[%clk
0:00:06.9]} 60. Bf5 {[%clk 0:00:21.5]} 60... h3 {[%clk 0:00:01.6]} 61. Rh7
{[%clk 0:00:20.8]} 61... h2 {[%clk 0:00:01.3]} 62. Rxh2 {[%clk 0:00:18.3]} 62...
Ra3 {[%clk 0:00:02.2]} 63. Rh7 {[%clk 0:00:15.6]} 63... Rxa5 {[%clk 0:00:01.9]}
64. Kf3 {[%clk 0:00:12.8]} 64... Ra4 {[%clk 0:00:02.4]} 65. Bd3 {[%clk
0:00:11.9]} 65... Ra3 {[%clk 0:00:02.7]} 66. Ke4 {[%clk 0:00:12.4]} 66... Ra1
{[%clk 0:00:02.8]} 67. Rh3 {[%clk 0:00:12.2]} 67... Re1+ {[%clk 0:00:03.3]} 68.
Kf5 {[%clk 0:00:12.5]} 68... Rd1 {[%clk 0:00:02.3]} 69. Ke6 {[%clk 0:00:12.3]}
69... Kg7 {[%clk 0:00:02.9]} 70. Rf3 {[%clk 0:00:11.7]} 70... Kg8 {[%clk
0:00:02.7]} 71. Bg6 {[%clk 0:00:10.9]} 71... Rg1 {[%clk 0:00:02.6]} 72. Bf7+
{[%clk 0:00:11]} 72... Kg7 {[%clk 0:00:02.5]} 73. Rf2 {[%clk 0:00:11.9]} 73...
Kh6 {[%clk 0:00:02.7]} 74. Be8 {[%clk 0:00:12]} 74... Kg5 {[%clk 0:00:02.8]} 75.
Rf5+ {[%clk 0:00:11.8]} 75... Kh4 {[%clk 0:00:03]} 76. Rxe5 {[%clk 0:00:12.5]}
76... dxe5 {[%clk 0:00:02.4]} 77. d6 {[%clk 0:00:13.4]} 77... Rc1 {[%clk
0:00:01.9]} 78. Bc6 {[%clk 0:00:13.8]} 78... e4 {[%clk 0:00:02.1]} 79. d7 {[%clk
0:00:14.7]} 79... Rd1 {[%clk 0:00:02.3]} 80. Bd5 {[%clk 0:00:15.3]} 80... e3
{[%clk 0:00:02.5]} 81. d8=Q+ {[%clk 0:00:15.4]} 81... Kg3 {[%clk 0:00:02.8]} 82.
Qg5+ {[%clk 0:00:15]} 82... Kf2 {[%clk 0:00:03.2]} 83. Qf4+ {[%clk 0:00:15.6]}
83... Ke2 {[%clk 0:00:03.5]} 84. Bf3+ {[%clk 0:00:16.2]} 84... Kd2 {[%clk
0:00:04]} 85. Bxd1 {[%clk 0:00:16.8]} 85... Kxd1 {[%clk 0:00:03.5]} 86. Qxe3
{[%clk 0:00:16.3]} 86... Kc2 {[%clk 0:00:04.1]} 87. Qxc5 {[%clk 0:00:17.2]} 1-0

[Event "Late-Titled-Tuesday-Blitz-June-18-2024"]
[Site "Chess.com"]
[Date "2024.06.18"]
[Round "1"]
[White "Statham_01"]
[Black "LoonsDeKoeben"]
[Result "1/2-1/2"]
[WhiteElo "2713"]
[BlackElo "2406"]
[TimeControl "180+1"]
[EndTime "14:09:20 PDT"]
[Termination "Game drawn by repetition"]

1. e4 {[%clk 0:02:59]} 1... c5 {[%clk 0:02:58.1]} 2. a3 {[%clk 0:02:58.9]} 2...
Nf6 {[%clk 0:02:53.3]} 3. e5 {[%clk 0:02:58.6]} 3... Nd5 {[%clk 0:02:53.5]} 4.
Nc3 {[%clk 0:02:59.3]} 4... Nxc3 {[%clk 0:02:52.2]} 5. dxc3 {[%clk 0:03:00.2]}
5... d6 {[%clk 0:02:52.6]} 6. Bc4 {[%clk 0:02:59.9]} 6... e6 {[%clk 0:02:51.2]}
7. Nf3 {[%clk 0:02:59.8]} 7... d5 {[%clk 0:02:51.3]} 8. Bd3 {[%clk 0:02:57]}
8... Nc6 {[%clk 0:02:51.2]} 9. c4 {[%clk 0:02:55]} 9... dxc4 {[%clk 0:02:49.1]}
10. Bxc4 {[%clk 0:02:55.5]} 10... Qxd1+ {[%clk 0:02:49.2]} 11. Kxd1 {[%clk
0:02:56.2]} 11... Be7 {[%clk 0:02:48.8]} 12. c3 {[%clk 0:02:55]} 12... b6 {[%clk
0:02:45.9]} 13. Ke2 {[%clk 0:02:52.9]} 13... Bb7 {[%clk 0:02:45.9]} 14. h4
{[%clk 0:02:52.1]} 14... Bd8 {[%clk 0:02:37.3]} 15. Bf4 {[%clk 0:02:47.4]} 15...
Bc7 {[%clk 0:02:35.7]} 16. Rhe1 {[%clk 0:02:36.3]} 16... a6 {[%clk 0:02:33.1]}
17. a4 {[%clk 0:02:34.7]} 17... Ne7 {[%clk 0:02:24.8]} 18. Rad1 {[%clk
0:02:29.5]} 18... Ng6 {[%clk 0:02:24]} 19. Bg3 {[%clk 0:02:21.4]} 19... h6
{[%clk 0:02:12.7]} 20. Rd2 {[%clk 0:02:13.9]} 20... O-O {[%clk 0:02:11.8]} 21.
h5 {[%clk 0:02:09.5]} 21... Ne7 {[%clk 0:02:11.5]} 22. Rd7 {[%clk 0:02:08.1]}
22... Bd5 {[%clk 0:02:05.5]} 23. Bxd5 {[%clk 0:01:24.8]} 23... Nxd5 {[%clk
0:02:06.4]} 24. c4 {[%clk 0:01:24.7]} 24... Rfd8 {[%clk 0:02:04.9]} 25. Rxd8+
{[%clk 0:01:25.1]} 25... Rxd8 {[%clk 0:02:05.8]} 26. cxd5 {[%clk 0:01:26]} 26...
exd5 {[%clk 0:02:06]} 27. b3 {[%clk 0:01:24]} 27... Kf8 {[%clk 0:02:06.4]} 28.
Kd3 {[%clk 0:01:21.1]} 28... Ke7 {[%clk 0:02:06]} 29. e6 {[%clk 0:01:21.4]}
29... Bxg3 {[%clk 0:02:02.6]} 30. exf7+ {[%clk 0:01:21.1]} 30... Kxf7 {[%clk
0:02:03.5]} 31. fxg3 {[%clk 0:01:21.5]} 31... Kf6 {[%clk 0:02:00.4]} 32. g4
{[%clk 0:01:20.3]} 32... b5 {[%clk 0:01:58.4]} 33. axb5 {[%clk 0:01:13.4]} 33...
axb5 {[%clk 0:01:59.3]} 34. Ra1 {[%clk 0:01:13.3]} 34... c4+ {[%clk 0:01:59.4]}
35. Kd4 {[%clk 0:01:08.6]} 35... cxb3 {[%clk 0:01:56.8]} 36. Rb1 {[%clk
0:01:07.1]} 36... Rc8 {[%clk 0:01:56.9]} 37. Rxb3 {[%clk 0:01:06.1]} 37... Rc4+
{[%clk 0:01:56.5]} 38. Kxd5 {[%clk 0:01:05.9]} 38... Rxg4 {[%clk 0:01:57.4]} 39.
Rb2 {[%clk 0:01:01.1]} 39... b4 {[%clk 0:01:57.7]} 40. Kc5 {[%clk 0:01:00.3]}
40... Kf5 {[%clk 0:01:04.7]} 41. Kd5 {[%clk 0:00:50.5]} 41... Rf4 {[%clk
0:00:57.7]} 42. Rf2 {[%clk 0:00:34.9]} 42... Kg4 {[%clk 0:00:28.9]} 43. Ke5
{[%clk 0:00:25.3]} 43... Rf5+ {[%clk 0:00:26.9]} 44. Ke4 {[%clk 0:00:24.3]}
44... Rf4+ {[%clk 0:00:27.1]} 45. Ke3 {[%clk 0:00:23.9]} 45... Rf6 {[%clk
0:00:27.2]} 46. Rb2 {[%clk 0:00:13.2]} 46... Kxh5 {[%clk 0:00:20.2]} 47. Rxb4
{[%clk 0:00:13]} 47... Kg6 {[%clk 0:00:19]} 48. Rg4+ {[%clk 0:00:13.2]} 48...
Kh7 {[%clk 0:00:18.9]} 49. Re4 {[%clk 0:00:12.3]} 49... Rg6 {[%clk 0:00:16.7]}
50. Kf2 {[%clk 0:00:12.3]} 50... Rf6 {[%clk 0:00:17]} 51. g3 {[%clk 0:00:11.9]}
51... Rf7 {[%clk 0:00:17.1]} 52. Kg2 {[%clk 0:00:12.1]} 52... Rf6 {[%clk
0:00:17.5]} 53. Rh4 {[%clk 0:00:12.5]} 53... Kg6 {[%clk 0:00:16.9]} 54. Rg4+
{[%clk 0:00:12.9]} 54... Kh7 {[%clk 0:00:16.8]} 55. Ne5 {[%clk 0:00:12.6]} 55...
Ra6 {[%clk 0:00:15.5]} 56. Nd7 {[%clk 0:00:11.7]} 56... Ra8 {[%clk 0:00:11.1]}
57. Nf6+ {[%clk 0:00:11.2]} 57... gxf6 {[%clk 0:00:10.4]} 58. Rd4 {[%clk
0:00:09.3]} 58... Kg6 {[%clk 0:00:09.9]} 59. Rg4+ {[%clk 0:00:09.5]} 59... Kf5
{[%clk 0:00:09.7]} 60. Rf4+ {[%clk 0:00:10.2]} 60... Kg5 {[%clk 0:00:10.3]} 61.
Rb4 {[%clk 0:00:09.9]} 61... Ra2+ {[%clk 0:00:10.3]} 62. Kh3 {[%clk 0:00:10.6]}
62... Ra3 {[%clk 0:00:09.7]} 63. Rb8 {[%clk 0:00:08.6]} 63... Kf5 {[%clk
0:00:07.8]} 64. Rh8 {[%clk 0:00:08.2]} 64... Kg6 {[%clk 0:00:07.6]} 65. Rg8+
{[%clk 0:00:08]} 65... Kf7 {[%clk 0:00:07.5]} 66. Rh8 {[%clk 0:00:08.2]} 66...
Kg7 {[%clk 0:00:07.6]} 67. Rb8 {[%clk 0:00:08.7]} 67... Kf7 {[%clk 0:00:07.9]}
68. Kh4 {[%clk 0:00:08.6]} 68... Ra1 {[%clk 0:00:07.1]} 69. Kg4 {[%clk
0:00:07.3]} 69... Rf1 {[%clk 0:00:05]} 70. Kh5 {[%clk 0:00:05.8]} 70... Rh1+
{[%clk 0:00:04.5]} 71. Kg4 {[%clk 0:00:06.1]} 71... Ke6 {[%clk 0:00:05]} 72.
Rb6+ {[%clk 0:00:05.8]} 72... Kf7 {[%clk 0:00:05.1]} 73. Kf5 {[%clk 0:00:05.8]}
73... Rf1+ {[%clk 0:00:03.1]} 74. Kg4 {[%clk 0:00:06.4]} 74... Kg6 {[%clk
0:00:04]} 75. Kh3 {[%clk 0:00:05.2]} 75... h5 {[%clk 0:00:04.1]} 76. Rb8 {[%clk
0:00:05.4]} 76... Kf5 {[%clk 0:00:04]} 77. Rb5+ {[%clk 0:00:05.3]} 77... Kg6
{[%clk 0:00:03.6]} 78. Rb8 {[%clk 0:00:06]} 78... Kf7 {[%clk 0:00:03.5]} 79.
Rb7+ {[%clk 0:00:05.5]} 79... Kg6 {[%clk 0:00:03.5]} 80. Rb8 {[%clk 0:00:05.8]}
1/2-1/2

[Event "Late-Titled-Tuesday-Blitz-June-18-2024"]
[Site "Chess.com"]
[Date "2024.06.18"]
[Round "1"]
[White "Chopper1905"]
[Black "Schattman"]
[Result "1-0"]
[WhiteElo "2905"]
[BlackElo "2491"]
[TimeControl "180+1"]
[EndTime "14:09:29 PDT"]
[Termination "Chopper1905 won on time"]

1. Nf3 {[%clk 0:02:57.8]} 1... Nf6 {[%clk 0:02:59.5]} 2. c4 {[%clk 0:02:55.1]}
2... e6 {[%clk 0:02:59.9]} 3. g3 {[%clk 0:02:54.4]} 3... d5 {[%clk 0:02:59.9]}
4. Bg2 {[%clk 0:02:54.3]} 4... Be7 {[%clk 0:03:00.4]} 5. O-O {[%clk 0:02:53.7]}
5... O-O {[%clk 0:03:00.9]} 6. d4 {[%clk 0:02:54.4]} 6... dxc4 {[%clk
0:02:56.1]} 7. Qc2 {[%clk 0:02:53.9]} 7... a6 {[%clk 0:02:54.9]} 8. a4 {[%clk
0:02:53.6]} 8... Bd7 {[%clk 0:02:55.2]} 9. Qxc4 {[%clk 0:02:54.1]} 9... Bc6
{[%clk 0:02:55]} 10. Bg5 {[%clk 0:02:51.2]} 10... a5 {[%clk 0:02:47.4]} 11. Nc3
{[%clk 0:02:43.9]} 11... Ne4 {[%clk 0:02:39.9]} 12. Bxe7 {[%clk 0:02:18.8]}
12... Qxe7 {[%clk 0:02:40.8]} 13. Qd3 {[%clk 0:02:15.4]} 13... Nxc3 {[%clk
0:02:28.4]} 14. bxc3 {[%clk 0:02:16.3]} 14... Nd7 {[%clk 0:02:23.9]} 15. c4
{[%clk 0:02:05.8]} 15... b6 {[%clk 0:02:24.1]} 16. Ng5 {[%clk 0:01:58.8]} 16...
Qxg5 {[%clk 0:02:17.4]} 17. Bxc6 {[%clk 0:01:58.5]} 17... Rad8 {[%clk
0:02:17.2]} 18. f4 {[%clk 0:01:58.3]} 18... Qe7 {[%clk 0:02:11.4]} 19. Rab1
{[%clk 0:01:55.1]} 19... Nc5 {[%clk 0:02:02.9]} 20. Qc3 {[%clk 0:01:42]} 20...
Qd6 {[%clk 0:01:54.4]} 21. d5 {[%clk 0:01:40.2]} 21... Ne4 {[%clk 0:01:34.6]}
22. Qe3 {[%clk 0:01:32.8]} 22... Qc5 {[%clk 0:01:34.9]} 23. Qxc5 {[%clk
0:01:30.5]} 23... Nxc5 {[%clk 0:01:35.8]} 24. e4 {[%clk 0:00:35.8]} 24... exd5
{[%clk 0:01:16.7]} 25. exd5 {[%clk 0:00:36.7]} 25... f6 {[%clk 0:01:10.4]} 26.
Rfe1 {[%clk 0:00:32.1]} 26... Kf7 {[%clk 0:01:10.2]} 27. g4 {[%clk 0:00:20.2]}
27... Nd3 {[%clk 0:00:57.5]} 28. Re4 {[%clk 0:00:19.8]} 28... Nc5 {[%clk
0:00:55.1]} 29. Re3 {[%clk 0:00:19.8]} 29... h5 {[%clk 0:00:53.3]} 30. h3 {[%clk
0:00:16.6]} 30... hxg4 {[%clk 0:00:50.2]} 31. hxg4 {[%clk 0:00:17.5]} 31... Rh8
{[%clk 0:00:50.1]} 32. Rbe1 {[%clk 0:00:12.6]} 32... Rh4 {[%clk 0:00:47.8]} 33.
Re7+ {[%clk 0:00:12.9]} 33... Kg6 {[%clk 0:00:47.7]} 34. Be8+ {[%clk 0:00:07.2]}
34... Rxe8 {[%clk 0:00:42.3]} 35. Rxe8 {[%clk 0:00:07.3]} 35... Rxg4+ {[%clk
0:00:42.6]} 36. Kh2 {[%clk 0:00:08]} 36... Rxf4 {[%clk 0:00:41.8]} 37. R8e7
{[%clk 0:00:06.8]} 37... Rxc4 {[%clk 0:00:36.6]} 38. Rxc7 {[%clk 0:00:06.6]}
38... Rd4 {[%clk 0:00:36.9]} 39. Rg1+ {[%clk 0:00:05.3]} 39... Kf5 {[%clk
0:00:36.4]} 40. Rgxg7 {[%clk 0:00:03.8]} 40... Rxd5 {[%clk 0:00:35.1]} 41. Rc6
{[%clk 0:00:04.4]} 41... Ne4 {[%clk 0:00:32.9]} 42. Rxb6 {[%clk 0:00:03.5]}
42... Rd4 {[%clk 0:00:29.1]} 43. Rb5+ {[%clk 0:00:02.8]} 43... Kf4 {[%clk
0:00:29.8]} 44. Rxa5 {[%clk 0:00:03.4]} 44... Rd2+ {[%clk 0:00:29.7]} 45. Rg2
{[%clk 0:00:04.1]} 45... Rd8 {[%clk 0:00:23.2]} 46. Rh5 {[%clk 0:00:03.1]} 46...
Ng5 {[%clk 0:00:21.1]} 47. Rh4+ {[%clk 0:00:03.8]} 47... Ke3 {[%clk 0:00:20.2]}
48. Rhg4 {[%clk 0:00:02.8]} 48... Nf3+ {[%clk 0:00:19.8]} 49. Kg3 {[%clk
0:00:03]} 49... Ne5 {[%clk 0:00:19]} 50. Rg7 {[%clk 0:00:03.7]} 50... Rd4 {[%clk
0:00:18]} 51. Re7 {[%clk 0:00:02.8]} 51... Rxa4 {[%clk 0:00:16.9]} 52. Kh3
{[%clk 0:00:03.4]} 52... Kf4 {[%clk 0:00:15.5]} 53. Re8 {[%clk 0:00:02.9]} 53...
Kf5 {[%clk 0:00:15.1]} 54. Reg8 {[%clk 0:00:02.3]} 54... Ra3+ {[%clk 0:00:14.7]}
55. R8g3 {[%clk 0:00:02.9]} 55... Rxg3+ {[%clk 0:00:14.3]} 56. Kxg3 {[%clk
0:00:03.8]} 56... Ng6 {[%clk 0:00:14.1]} 57. Rf2+ {[%clk 0:00:03.9]} 57... Kg5
{[%clk 0:00:13.4]} 58. Ra2 {[%clk 0:00:03.8]} 58... Ne5 {[%clk 0:00:13.3]} 59.
Ra5 {[%clk 0:00:04.3]} 59... Kf5 {[%clk 0:00:13.7]} 60. Rb5 {[%clk 0:00:04.5]}
60... Kg5 {[%clk 0:00:14.1]} 61. Kf2 {[%clk 0:00:04.6]} 61... Kf5 {[%clk
0:00:13.9]} 62. Ke3 {[%clk 0:00:05.3]} 62... Ke6 {[%clk 0:00:14.3]} 63. Ke4
{[%clk 0:00:05.3]} 63... Kd6 {[%clk 0:00:13]} 64. Rb6+ {[%clk 0:00:04.8]} 64...
Ke7 {[%clk 0:00:12.4]} 65. Kf5 {[%clk 0:00:04.8]} 65... Nd7 {[%clk 0:00:13]} 66.
Re6+ {[%clk 0:00:04.9]} 66... Kf7 {[%clk 0:00:12.9]} 67. Re1 {[%clk 0:00:05.1]}
67... Ne5 {[%clk 0:00:11.8]} 68. Ra1 {[%clk 0:00:05.5]} 68... Nd7 {[%clk
0:00:11.5]} 69. Rh1 {[%clk 0:00:05.6]} 69... Ke7 {[%clk 0:00:11.3]} 70. Rh7+
{[%clk 0:00:05.7]} 70... Kd6 {[%clk 0:00:11.4]} 71. Rf7 {[%clk 0:00:05.6]} 71...
Nc5 {[%clk 0:00:07.7]} 72. Rxf6+ {[%clk 0:00:03.9]} 72... Kd5 {[%clk 0:00:08.2]}
73. Rh6 {[%clk 0:00:04.7]} 73... Nd3 {[%clk 0:00:08.3]} 74. Rh4 {[%clk
0:00:04.2]} 74... Nc5 {[%clk 0:00:07.8]} 75. Rh5 {[%clk 0:00:04.5]} 75... Nd3
{[%clk 0:00:07.2]} 76. Rh8 {[%clk 0:00:04.8]} 76... Nc5 {[%clk 0:00:07]} 77.
Rd8+ {[%clk 0:00:05.7]} 77... Kc6 {[%clk 0:00:07.1]} 78. Ke5 {[%clk 0:00:06.2]}
78... Nd7+ {[%clk 0:00:06.4]} 79. Ke6 {[%clk 0:00:06.7]} 79... Nc5+ {[%clk
0:00:05.6]} 80. Ke7 {[%clk 0:00:06.9]} 80... Nb3 {[%clk 0:00:05.2]} 81. Rd1
{[%clk 0:00:02.4]} 81... Nc5 {[%clk 0:00:05.3]} 82. Kf6 {[%clk 0:00:02.9]} 82...
Ne4+ {[%clk 0:00:04.4]} 83. Ke5 {[%clk 0:00:03.1]} 83... Nc5 {[%clk 0:00:05.1]}
84. Rc1 {[%clk 0:00:03.6]} 84... Kb6 {[%clk 0:00:03.1]} 85. Kd5 {[%clk
0:00:04.5]} 85... Nd3 {[%clk 0:00:02.8]} 86. Rb1+ {[%clk 0:00:02.9]} 86... Kc7
{[%clk 0:00:02.4]} 87. Rb3 {[%clk 0:00:01.4]} 87... Nf4+ {[%clk 0:00:01.8]} 88.
Ke5 {[%clk 0:00:02.1]} 88... Ng6+ {[%clk 0:00:01.4]} 89. Kf6 {[%clk 0:00:02.7]}
1-0